bitfinex-derivatives/quotes_BTCF0:USTF0_20241221
["timestamp","ask_amount","ask_price","bid_price","bid_amount"]
[1734824782545,0.051538,97068.0,97066.0,0.24664896]
[1734824783732,0.052538,97068.0,97066.0,0.24664896]
[1734824784133,0.001,97068.0,97067.0,0.18500377]
[1734824784433,0.413338,97068.0,97067.0,0.18500377]
[1734824784735,0.412338,97068.0,97067.0,0.18500377]
[1734824784943,0.415338,97068.0,97067.0,0.18500377]
[1734824785335,0.415338,97068.0,97065.0,0.18500377]
[1734824785336,0.3638,97068.0,97065.0,0.18500377]
[1734824785530,0.051539,97066.0,97065.0,0.18500377]
[1734824786635,0.051539,97066.0,97064.0,0.18500377]
[1734824787143,0.054539,97066.0,97064.0,0.18500377]
[1734824787436,0.055539,97066.0,97064.0,0.18500377]
[1734824788041,0.054539,97066.0,97064.0,0.18500377]
[1734824788444,0.05154,97064.0,97063.0,0.18654892]
[1734824789539,0.05154,97064.0,97063.0,0.00154515]
[1734824789743,0.05354,97064.0,97063.0,0.00154515]
[1734824790142,0.05154,97064.0,97063.0,0.00154515]
[1734824790343,0.05154,97064.0,97063.0,0.00254515]
[1734824792054,0.00813146,97076.0,97067.0,0.051538]
[1734824792364,0.00813146,97075.0,97067.0,0.051538]
[1734824792661,0.09241086,97077.0,97067.0,0.051538]
[1734824792662,0.3608,97072.0,97067.0,0.051538]
[1734824793053,0.051538,97069.0,97067.0,0.051538]
[1734824793254,0.051538,97069.0,97067.0,0.052538]
[1734824794162,0.3608,97072.0,97071.0,0.051537]
[1734824794754,0.0081423,97074.0,97068.0,0.0637]
[1734824795063,0.09241086,97075.0,97074.0,0.051535]
[1734824795865,0.051531,97083.0,97073.0,0.031]
[1734824795866,0.09241086,97081.0,97079.0,0.051532]
[1734824796052,0.09241086,97081.0,97080.0,0.3608]
[1734824796252,0.10056143,97081.0,97080.0,0.3608]
[1734824796658,0.00815057,97081.0,97080.0,0.3608]
[1734824797146,0.00915057,97081.0,97080.0,0.3608]
[1734824797654,0.001,97081.0,97080.0,0.3608]
[1734824798965,0.09241086,97087.0,97081.0,0.051531]
[1734824799269,0.09241086,97087.0,97080.0,0.3608]
[1734824799473,0.051527,97089.0,97080.0,0.3608]
[1734824799474,0.051527,97089.0,97080.0,0.62013549]
[1734824799663,0.051527,97089.0,97088.0,0.3608]
[1734824800865,0.056527,97089.0,97088.0,0.3608]
[1734824801969,0.057527,97089.0,97088.0,0.3608]
[1734824802864,0.052527,97089.0,97088.0,0.3608]
[1734824803070,0.057527,97089.0,97088.0,0.3608]
[1734824805570,0.051529,97086.0,97085.0,0.24659245]
[1734824806969,0.054529,97086.0,97085.0,0.24659245]
[1734824807170,0.051531,97082.0,97081.0,0.24659245]
[1734824808576,0.052531,97082.0,97081.0,0.24659245]
[1734824808779,0.051532,97081.0,97079.0,0.3608]
[1734824809872,0.051532,97081.0,97079.0,0.412332]
[1734824810376,0.001,97081.0,97079.0,0.412332]
[1734824812072,0.001,97081.0,97080.0,0.24659245]
[1734824812775,0.00943931,97095.0,97081.0,0.051531]
[1734824812968,0.051529,97086.0,97081.0,0.051531]
[1734824813277,0.05153,97084.0,97081.0,0.051531]
[1734824813471,0.00813879,97083.0,97081.0,0.29812345]
[1734824813673,0.00813009,97082.0,97081.0,0.29812345]
[1734824813976,0.00813009,97082.0,97081.0,0.24659245]
[1734824814968,0.05966109,97082.0,97079.0,0.3608]
[1734824815168,0.00813009,97081.0,97079.0,0.3608]
[1734824815369,0.00813009,97080.0,97079.0,0.3608]
[1734824816376,0.00913009,97080.0,97079.0,0.3608]
[1734824816870,0.001,97080.0,97079.0,0.3608]
[1734824817075,0.00913009,97080.0,97079.0,0.3608]
[1734824818370,0.001,97080.0,97079.0,0.3608]
[1734824819880,0.09241086,97091.0,97079.0,0.3608]
[1734824820075,0.09241086,97091.0,97090.0,0.051526]
[1734824820277,0.3608,97098.0,97094.0,0.051524]
[1734824820476,0.412322,97098.0,97094.0,0.051524]
[1734824820683,0.051524,97096.0,97094.0,0.051524]
[1734824820977,0.3608,97098.0,97088.0,0.3608]
[1734824821180,0.3608,97098.0,97097.0,0.051523]
[1734824821876,0.00814787,97102.0,97095.0,0.24676837]
[1734824822083,0.09241086,97105.0,97096.0,0.3608]
[1734824822575,0.008,97098.0,97097.0,0.052523]
[1734824823185,0.00814787,97111.0,97110.0,0.051516]
[1734824824269,0.051516,97110.0,97108.0,0.24676455]
[1734824824471,0.00817785,97109.0,97108.0,0.24676455]
[1734824825076,0.00817785,97109.0,97105.0,0.29828255]
[1734824825380,0.00817785,97109.0,97106.0,0.051518]
[1734824825970,0.01717785,97109.0,97108.0,0.001]
[1734824826175,0.009,97109.0,97108.0,0.001]
[1734824826576,0.012,97109.0,97106.0,0.052518]
[1734824827174,0.051517,97108.0,97106.0,0.051518]
[1734824827883,0.00817656,97107.0,97106.0,0.051518]
[1734824828075,0.05969356,97108.0,97106.0,0.051518]
[1734824828783,0.05969356,97108.0,97106.0,0.052518]
[1734824829286,0.06769356,97108.0,97106.0,0.29928255]
[1734824829581,0.059517,97108.0,97106.0,0.29928255]
[1734824829781,0.062517,97108.0,97106.0,0.29928255]
[1734824830982,0.062517,97108.0,97106.0,0.052518]
[1734824831179,0.011,97108.0,97106.0,0.052518]
[1734824832478,0.00818153,97107.0,97106.0,0.052518]
[1734824832673,0.011,97108.0,97106.0,0.052518]
[1734824832982,0.011,97108.0,97107.0,0.0311]
[1734824833281,0.09241086,97117.0,97116.0,0.051513]
[1734824833470,0.09241086,97117.0,97116.0,0.412313]
[1734824834370,0.09241086,97135.0,97116.0,0.3608]
[1734824834591,0.09241086,97135.0,97134.0,0.051503]
[1734824834973,0.0305,97142.0,97133.0,0.3608]
[1734824834974,0.12291086,97142.0,97133.0,0.3608]
[1734824835173,0.12291086,97142.0,97137.0,0.051501]
[1734824836082,0.14590986,97142.0,97138.0,0.051501]
[1734824836278,0.14590986,97142.0,97133.0,0.3618]
[1734824836474,0.14790986,97142.0,97133.0,0.3618]
[1734824836778,0.09641086,97142.0,97140.0,0.0515]
[1734824836982,0.004,97142.0,97140.0,0.0515]
[1734824837183,0.002,97142.0,97140.0,0.0515]
[1734824837571,0.002,97142.0,97141.0,0.3608]
[1734824838284,0.09241086,97155.0,97141.0,0.3608]
[1734824838484,0.09241086,97155.0,97151.0,0.051494]
[1734824838688,0.051491,97157.0,97151.0,0.051494]
[1734824839379,0.00928473,97162.0,97151.0,0.051494]
[1734824839584,0.055492,97155.0,97152.0,0.051493]
[1734824840174,0.051493,97153.0,97152.0,0.051493]
[1734824840674,0.051493,97153.0,97151.0,0.001]
[1734824841575,0.005,97157.0,97154.0,0.051492]
[1734824841772,0.003,97157.0,97154.0,0.051492]
[1734824842077,0.002,97155.0,97154.0,0.051492]
[1734824842693,0.053491,97157.0,97154.0,0.051492]
[1734824843090,0.053491,97157.0,97154.0,0.052492]
[1734824843593,0.002,97155.0,97154.0,0.052492]
[1734824844994,0.051491,97157.0,97154.0,0.052492]
[1734824845194,0.051492,97155.0,97154.0,0.001]
[1734824845786,0.053492,97155.0,97154.0,0.001]
[1734824846093,0.002,97155.0,97143.0,0.051498]
[1734824846299,0.051499,97142.0,97141.0,0.3608]
[1734824846692,0.3608,97148.0,97138.0,0.051501]
[1734824846897,0.0515,97140.0,97133.0,0.24606429]
[1734824847201,0.0515,97140.0,97116.0,0.42224552]
[1734824847202,0.051502,97136.0,97135.0,0.18454822]
[1734824848892,0.051502,97136.0,97123.0,0.051509]
[1734824848893,0.051508,97124.0,97123.0,0.051509]
[1734824849402,0.051511,97120.0,97118.0,0.18454822]
[1734824849905,0.051511,97120.0,97118.0,0.23605922]
[1734824850397,0.051511,97120.0,97118.0,0.051511]
[1734824850901,0.053511,97120.0,97118.0,0.051511]
[1734824852197,0.002,97120.0,97118.0,0.051511]
[1734824852899,0.051508,97124.0,97120.0,0.05151]
[1734824853097,0.3608,97130.0,97112.0,0.051515]
[1734824853294,0.3608,97130.0,97129.0,0.051506]
[1734824853495,0.051502,97136.0,97118.0,0.3608]
[1734824853802,0.051499,97143.0,97142.0,0.051498]
[1734824854005,0.09241086,97145.0,97144.0,0.051498]
[1734824855215,0.00928705,97163.0,97144.0,0.051498]
[1734824855390,0.00928705,97163.0,97154.0,0.3608]
[1734824855596,0.09241086,97167.0,97166.0,0.051486]
[1734824856394,0.051488,97163.0,97159.0,0.051489]
[1734824856701,0.051488,97163.0,97160.0,0.051489]
[1734824857093,0.054486,97167.0,97166.0,0.001]
[1734824858011,0.05149,97159.0,97158.0,0.18454822]
[1734824858194,0.051493,97153.0,97152.0,0.18454822]
[1734824859102,0.051493,97153.0,97151.0,0.051494]
[1734824859904,0.051493,97153.0,97152.0,0.051494]
[1734824859905,0.002,97153.0,97152.0,0.051494]
[1734824860299,0.005,97153.0,97152.0,0.051494]
[1734824860999,0.005,97153.0,97152.0,0.082094]
[1734824861199,0.051483,97173.0,97152.0,0.082094]
[1734824861400,0.051483,97172.0,97170.0,0.051484]
[1734824861600,0.051486,97167.0,97163.0,0.412287]
[1734824861904,0.051487,97164.0,97163.0,0.412287]
[1734824862398,0.051487,97164.0,97163.0,0.3608]
[1734824863098,0.053487,97164.0,97163.0,0.3608]
[1734824863299,0.053487,97164.0,97163.0,0.54534822]
[1734824863599,0.053487,97164.0,97163.0,0.54634822]
[1734824863799,0.053487,97164.0,97163.0,0.18554822]
[1734824863994,0.06167707,97164.0,97163.0,0.18554822]
[1734824864208,0.053487,97164.0,97163.0,0.18554822]
[1734824864406,0.053487,97164.0,97163.0,0.001]
[1734824866705,0.002,97164.0,97163.0,0.001]
[1734824867100,0.053487,97164.0,97163.0,0.001]
[1734824870698,0.002,97164.0,97163.0,0.001]
[1734824875418,0.053487,97164.0,97163.0,0.001]
[1734824883618,0.06168279,97164.0,97163.0,0.001]
[1734824884316,0.051489,97160.0,97159.0,0.24606429]
[1734824884616,0.42048479,97160.0,97159.0,0.00396429]
[1734824884806,0.72048479,97160.0,97154.0,0.18503107]
[1734824885009,0.412292,97155.0,97154.0,0.18503107]
[1734824885217,0.42048779,97155.0,97154.0,0.18503107]
[1734824885716,0.4204749,97155.0,97154.0,0.18503107]
[1734824886217,0.4204749,97155.0,97154.0,0.18603107]
[1734824886420,0.47054487,97155.0,97154.0,0.001]
[1734824887707,0.57441487,97155.0,97154.0,0.001]
[1734824888915,0.4204749,97155.0,97154.0,0.001]
[1734824890317,0.412292,97155.0,97154.0,0.001]
[1734824891522,0.50458921,97155.0,97154.0,0.001]
[1734824892822,0.051492,97155.0,97154.0,0.001]
[1734824899023,0.09229721,97166.0,97154.0,0.001]
[1734824899227,0.09229721,97166.0,97158.0,0.05149]
[1734824899615,0.09229721,97166.0,97154.0,0.001]
[1734824899815,0.051486,97167.0,97163.0,0.051488]
[1734824900016,0.09229721,97168.0,97163.0,0.051488]
[1734824900820,0.3618,97165.0,97163.0,0.051488]
[1734824901022,0.413287,97165.0,97163.0,0.051488]
[1734824901215,0.412287,97165.0,97163.0,0.051488]
[1734824901419,0.413287,97165.0,97163.0,0.052488]
[1734824901821,0.3618,97165.0,97163.0,0.052488]
[1734824902218,0.09229721,97171.0,97170.0,0.051484]
[1734824903825,0.09229721,97171.0,97170.0,0.052484]
[1734824904129,0.051481,97177.0,97174.0,0.051482]
[1734824904320,0.051481,97177.0,97175.0,0.0309]
[1734824905423,0.051481,97177.0,97175.0,0.0319]
[1734824906325,0.00819833,97176.0,97175.0,0.001]
[1734824907222,0.051481,97177.0,97175.0,0.001]
[1734824907428,0.051485,97168.0,97167.0,0.0308]
[1734824907628,0.051485,97168.0,97164.0,0.18503107]
[1734824907629,0.051487,97165.0,97164.0,0.18503107]
[1734824907825,0.412287,97165.0,97164.0,0.18503107]
[1734824908025,0.42048533,97165.0,97164.0,0.18503107]
[1734824908622,0.36899833,97165.0,97153.0,0.18503107]
[1734824908827,0.412292,97154.0,97153.0,0.18503107]
[1734824910128,0.051494,97151.0,97150.0,0.031]
[1734824911026,0.09227212,97155.0,97153.0,0.051493]
[1734824911227,0.12306295,97159.0,97150.0,0.031]
[1734824911522,0.12306295,97159.0,97158.0,0.05149]
[1734824911722,0.12306295,97162.0,97160.0,0.051489]
[1734824911922,0.12306295,97162.0,97161.0,0.0312]
[1734824913126,0.3608,97165.0,97161.0,0.0312]
[1734824913325,0.13124102,97175.0,97161.0,0.0312]
[1734824913326,0.12306295,97175.0,97161.0,0.0312]
[1734824913523,0.051486,97166.0,97161.0,0.082689]
[1734824913722,0.051486,97166.0,97161.0,0.0312]
[1734824914019,0.051486,97166.0,97164.0,0.051487]
[1734824915027,0.051486,97166.0,97164.0,0.052487]
[1734824915624,0.051483,97173.0,97167.0,0.051486]
[1734824915823,0.12306295,97180.0,97168.0,0.0302]
[1734824916623,0.13127363,97180.0,97168.0,0.0302]
[1734824916833,0.00821068,97179.0,97168.0,0.0302]
[1734824917128,0.051485,97170.0,97168.0,0.0312]
[1734824917724,0.051485,97170.0,97169.0,0.0311]
[1734824918724,0.051485,97170.0,97169.0,0.0321]
[1734824918925,0.412281,97176.0,97169.0,0.083585]
[1734824919232,0.051482,97175.0,97169.0,0.083585]
[1734824919422,0.051484,97171.0,97169.0,0.0321]
[1734824921126,0.3608,97176.0,97169.0,0.0321]
[1734824921328,0.412281,97176.0,97170.0,0.051484]
[1734824921633,0.051482,97174.0,97170.0,0.051484]
[1734824922333,0.051483,97172.0,97170.0,0.051484]
[1734824922530,0.3608,97176.0,97169.0,0.21713107]
[1734824922531,0.051484,97171.0,97169.0,0.21713107]
[1734824923431,0.051484,97171.0,97170.0,0.001]
[1734824923930,0.051484,97171.0,97169.0,0.21613107]
[1734824923931,0.051484,97171.0,97169.0,0.18603107]
[1734824924133,0.0082311,97170.0,97169.0,0.18603107]
[1734824924334,0.0393311,97170.0,97169.0,0.18603107]
[1734824924529,0.0393311,97170.0,97169.0,0.18503107]
[1734824924729,0.0393311,97170.0,97157.0,0.30781044]
[1734824924929,0.3608,97162.0,97157.0,0.30781044]
[1734824925231,0.05149,97159.0,97157.0,0.30781044]
[1734824925434,0.0082311,97158.0,97157.0,0.30781044]
[1734824926332,0.0082311,97158.0,97150.0,0.051495]
[1734824926638,0.051492,97156.0,97152.0,0.051493]
[1734824926842,0.051494,97152.0,97146.0,0.30781044]
[1734824927239,0.00822702,97153.0,97146.0,0.30781044]
[1734824927537,0.051494,97151.0,97146.0,0.30781044]
[1734824927945,0.051496,97148.0,97145.0,0.06113006]
[1734824928442,0.3608,97153.0,97145.0,0.06113006]
[1734824928632,0.051497,97147.0,97145.0,0.051497]
[1734824929937,0.051497,97147.0,97146.0,0.001]
[1734824930555,0.051497,97147.0,97145.0,0.051497]
[1734824931055,0.051497,97147.0,97146.0,0.001]
[1734824932654,0.051497,97147.0,97140.0,0.42151044]
[1734824932655,0.051497,97146.0,97140.0,0.11506]
[1734824932856,0.051499,97142.0,97140.0,0.0622]
[1734824933551,0.412299,97142.0,97140.0,0.0622]
[1734824935453,0.412299,97142.0,97141.0,0.18490197]
[1734824935757,0.3608,97142.0,97141.0,0.18490197]
[1734824936455,0.3608,97142.0,97140.0,0.1137]
[1734824936755,0.412299,97142.0,97140.0,0.1137]
[1734824937156,0.051499,97142.0,97140.0,0.1137]
[1734824938355,0.412293,97153.0,97150.0,0.051494]
[1734824938553,0.412293,97153.0,97151.0,0.0317]
[1734824940658,0.412293,97153.0,97151.0,0.0327]
[1734824941057,0.00995564,97163.0,97151.0,0.0327]
[1734824941251,0.05149,97159.0,97158.0,0.05149]
[1734824941564,0.17454995,97165.0,97163.0,0.051487]
[1734824942662,0.051487,97165.0,97163.0,0.051487]
[1734824943162,0.051487,97165.0,97163.0,0.052487]
[1734824943660,0.051487,97165.0,97163.0,0.001]
[1734824944066,0.3608,97164.0,97163.0,0.001]
[1734824945262,0.412287,97164.0,97163.0,0.001]
[1734824949357,0.12306295,97169.0,97168.0,0.051485]
[1734824950466,0.3608,97172.0,97171.0,0.051483]
[1734824952568,0.13292551,97179.0,97171.0,0.051483]
[1734824952569,0.05148,97178.0,97177.0,0.05148]
[1734824954072,0.05148,97178.0,97177.0,0.05248]
[1734824954370,0.12306295,97179.0,97177.0,0.05248]
[1734824954565,0.17453995,97184.0,97182.0,0.051478]
[1734824956174,0.17453995,97184.0,97182.0,0.052478]
[1734824956175,0.051477,97184.0,97182.0,0.052478]
[1734824957276,0.48386295,97191.0,97184.0,0.051477]
[1734824957477,0.051473,97190.0,97184.0,0.051477]
[1734824958061,0.051473,97190.0,97182.0,0.001]
[1734824958277,0.3608,97191.0,97190.0,0.051473]
[1734824958472,0.3608,97191.0,97182.0,0.001]
[1734824958473,0.01008607,97191.0,97185.0,0.051476]
[1734824958675,0.12306295,97193.0,97192.0,0.051472]
[1734824958867,0.05147,97197.0,97185.0,0.051476]
[1734824958868,0.17453295,97197.0,97185.0,0.051476]
[1734824959070,0.17453295,97197.0,97192.0,0.051472]
[1734824959380,0.051471,97194.0,97193.0,0.0307]
[1734824959574,0.13312831,97197.0,97181.0,0.18483133]
[1734824959877,0.051478,97182.0,97181.0,0.18483133]
[1734824960871,0.051478,97182.0,97181.0,0.18583133]
[1734824961969,0.051478,97182.0,97181.0,0.001]
[1734824962279,0.3608,97184.0,97166.0,0.033]
[1734824962474,0.051482,97174.0,97166.0,0.033]
[1734824963578,0.051482,97174.0,97166.0,0.034]
[1734824963781,0.051478,97181.0,97166.0,0.034]
[1734824963999,0.051479,97180.0,97173.0,0.051482]
[1734824964382,0.05148,97178.0,97173.0,0.051482]
[1734824964678,0.37046371,97184.0,97168.0,0.051485]
[1734824964873,0.051481,97176.0,97169.0,0.051484]
[1734824965077,0.051481,97176.0,97171.0,0.051483]
[1734824965578,0.051481,97176.0,97173.0,0.001]
[1734824965971,0.051481,97176.0,97171.0,0.051483]
[1734824966174,0.051481,97176.0,97171.0,0.052483]
[1734824966481,0.051481,97176.0,97172.0,0.051483]
[1734824966683,0.051481,97176.0,97173.0,0.001]
[1734824966984,0.3608,97184.0,97180.0,0.051478]
[1734824967170,0.3608,97184.0,97181.0,0.0305]
[1734824967681,0.12306295,97190.0,97181.0,0.3913]
[1734824968082,0.12306295,97190.0,97189.0,0.051474]
[1734824968478,0.051473,97192.0,97189.0,0.051474]
[1734824968673,0.051473,97192.0,97190.0,0.081673]
[1734824969385,0.12306295,97195.0,97193.0,0.051472]
[1734824970078,0.051469,97199.0,97197.0,0.05147]
[1734824970477,0.051469,97199.0,97194.0,0.051471]
[1734824970687,0.051469,97199.0,97195.0,0.05147]
[1734824971786,0.051469,97199.0,97190.0,0.3924]
[1734824971978,0.051469,97199.0,97197.0,0.051469]
[1734824972984,0.051469,97199.0,97197.0,0.052469]
[1734824973176,0.3608,97208.0,97199.0,0.051469]
[1734824973376,0.051467,97203.0,97199.0,0.051469]
[1734824974975,0.051469,97198.0,97193.0,0.051472]
[1734824975176,0.051469,97198.0,97196.0,0.05147]
[1734824975372,0.3608,97208.0,97199.0,0.051469]
[1734824975373,0.051466,97204.0,97199.0,0.051469]
[1734824976388,0.051467,97203.0,97199.0,0.051469]
[1734824976888,0.051467,97203.0,97199.0,0.052469]
[1734824978483,0.151468,97200.0,97199.0,0.001]
[1734824981290,0.512268,97200.0,97199.0,0.001]
[1734824981788,0.151468,97200.0,97199.0,0.001]
[1734824997094,0.051473,97190.0,97189.0,0.18483133]
[1734824997294,0.412273,97190.0,97189.0,0.18483133]
[1734824997493,0.412273,97190.0,97186.0,0.24643436]
[1734824998398,0.412273,97190.0,97189.0,0.001]
[1734824998591,0.42246613,97190.0,97189.0,0.001]
[1734824998796,0.051478,97181.0,97180.0,0.49227692]
[1734824999002,0.051478,97181.0,97180.0,0.18446648]
[1734824999003,0.42247113,97181.0,97180.0,0.18446648]
[1734824999703,0.412278,97181.0,97180.0,0.18446648]
[1734825000607,0.412278,97181.0,97168.0,0.0636]
[1734825000608,0.051483,97172.0,97171.0,0.18446648]
[1734825001901,0.051483,97172.0,97169.0,0.18446648]
[1734825002110,0.051484,97170.0,97169.0,0.18446648]
[1734825003512,0.051484,97170.0,97162.0,0.0329]
[1734825003710,0.051488,97163.0,97162.0,0.0329]
[1734825004910,0.052488,97163.0,97162.0,0.0329]
[1734825010006,0.051488,97163.0,97162.0,0.0329]
[1734825010215,0.052488,97163.0,97162.0,0.0329]
[1734825010511,0.051488,97163.0,97162.0,0.0329]
[1734825010711,0.052488,97163.0,97162.0,0.0329]
[1734825014321,0.001,97163.0,97162.0,0.0329]
[1734825014809,0.051481,97176.0,97162.0,0.0329]
[1734825015006,0.051481,97175.0,97172.0,0.051483]
[1734825015211,0.051481,97175.0,97173.0,0.084582]
[1734825017818,0.051481,97175.0,97173.0,0.0331]
[1734825019620,0.051478,97182.0,97178.0,0.05148]
[1734825020118,0.17478357,97188.0,97179.0,0.3608]
[1734825020309,0.17478357,97188.0,97185.0,0.051476]
[1734825020512,0.17478357,97188.0,97186.0,0.0316]
[1734825020914,0.051475,97188.0,97186.0,0.0316]
[1734825022213,0.34584,97192.0,97189.0,0.051474]
[1734825022425,0.051472,97192.0,97189.0,0.051474]
[1734825023122,0.051473,97191.0,97189.0,0.051474]
[1734825023320,0.051473,97191.0,97189.0,0.052474]
[1734825023511,0.051473,97191.0,97189.0,0.001]
[1734825024321,0.3608,97194.0,97185.0,0.18446648]
[1734825024627,0.051473,97190.0,97189.0,0.001]
[1734825025914,0.051476,97186.0,97180.0,0.031]
[1734825026117,0.051476,97186.0,97185.0,0.001]
[1734825026626,0.051476,97186.0,97180.0,0.031]
[1734825026815,0.051476,97186.0,97183.0,0.051477]
[1734825028113,0.051476,97186.0,97184.0,0.051476]
[1734825029414,0.37069255,97194.0,97183.0,0.001]
[1734825029731,0.051476,97185.0,97184.0,0.001]
[1734825030728,0.051476,97185.0,97183.0,0.001]
[1734825032119,0.051476,97185.0,97179.0,0.18446648]
[1734825032327,0.051479,97180.0,97179.0,0.18446648]
[1734825033436,0.051479,97180.0,97179.0,0.18546648]
[1734825034432,0.051479,97180.0,97179.0,0.001]
[1734825036131,0.14387934,97180.0,97179.0,0.001]
[1734825036927,0.15366329,97180.0,97179.0,0.001]
[1734825037430,0.06126295,97180.0,97179.0,0.001]
[1734825040235,0.54537152,97180.0,97179.0,0.001]
[1734825043041,0.42206295,97180.0,97179.0,0.001]
[1734825049835,0.051485,97169.0,97168.0,0.18446648]
[1734825050038,0.42247954,97169.0,97168.0,0.18446648]
[1734825050232,0.42247954,97169.0,97162.0,0.24643436]
[1734825050233,0.42247954,97169.0,97162.0,0.18446648]
[1734825050427,0.051488,97163.0,97162.0,0.18446648]
[1734825050633,0.06168254,97163.0,97162.0,0.18446648]
[1734825051143,0.06169359,97163.0,97162.0,0.18446648]
[1734825052035,0.051489,97160.0,97159.0,0.0304]
[1734825053237,0.051489,97160.0,97159.0,0.0314]
[1734825056137,0.06179523,97160.0,97159.0,0.0314]
[1734825058449,0.06179523,97160.0,97159.0,0.001]
[1734825060253,0.21588393,97160.0,97159.0,0.001]
[1734825061741,0.06179523,97160.0,97159.0,0.001]
[1734825073451,0.051489,97160.0,97159.0,0.001]
[1734825075253,0.09242824,97162.0,97159.0,0.001]
[1734825075442,0.09242824,97162.0,97161.0,0.051489]
[1734825076153,0.14391624,97163.0,97161.0,0.051489]
[1734825076657,0.09242824,97163.0,97161.0,0.051489]
[1734825076959,0.001,97162.0,97161.0,0.051489]
[1734825077144,0.001,97162.0,97160.0,0.0952]
[1734825077345,0.051489,97161.0,97160.0,0.0952]
[1734825079458,0.051489,97161.0,97160.0,0.0962]
[1734825080156,0.051489,97161.0,97160.0,0.065]
[1734825082249,0.051489,97161.0,97160.0,0.001]
[1734825084361,0.10155741,97161.0,97160.0,0.001]
[1734825086564,0.051499,97141.0,97140.0,0.18430565]
[1734825086955,0.3608,97144.0,97137.0,0.031]
[1734825086956,0.051501,97138.0,97137.0,0.27678215]
[1734825088060,0.051501,97138.0,97137.0,0.031]
[1734825088568,0.06141164,97138.0,97137.0,0.034]
[1734825089348,0.06141164,97138.0,97137.0,0.038]
[1734825089760,0.06141164,97138.0,97137.0,0.007]
[1734825092557,0.06141164,97138.0,97137.0,0.004]
[1734825092763,0.051504,97133.0,97121.0,0.21572497]
[1734825092956,0.001,97138.0,97121.0,0.21572497]
[1734825093156,0.001,97138.0,97129.0,0.051505]
[1734825093157,0.052501,97138.0,97129.0,0.051505]
[1734825093364,0.052501,97138.0,97133.0,0.0317]
[1734825093562,0.001,97138.0,97133.0,0.0317]
[1734825093858,0.051502,97137.0,97133.0,0.0317]
[1734825094059,0.45316692,97139.0,97133.0,0.0317]
[1734825094465,0.12321747,97144.0,97135.0,0.3608]
[1734825094656,0.12321747,97144.0,97139.0,0.0515]
[1734825095064,0.45315288,97147.0,97139.0,0.0515]
[1734825095568,0.09235288,97147.0,97140.0,0.0515]
[1734825095760,0.14384988,97147.0,97140.0,0.0515]
[1734825095958,0.09235288,97147.0,97140.0,0.0515]
[1734825096156,0.051497,97146.0,97140.0,0.0515]
[1734825096351,0.01001798,97156.0,97142.0,0.18432497]
[1734825096557,0.3608,97157.0,97143.0,0.3608]
[1734825096855,0.001,97147.0,97146.0,0.051497]
[1734825097170,0.052496,97147.0,97143.0,0.3608]
[1734825097755,0.052496,97147.0,97144.0,0.0311]
[1734825097952,0.051497,97146.0,97144.0,0.0311]
[1734825099362,0.051497,97146.0,97144.0,0.0321]
[1734825100265,0.051497,97146.0,97144.0,0.0331]
[1734825100459,0.051497,97146.0,97145.0,0.18414187]
[1734825101862,0.051497,97146.0,97145.0,0.001]
[1734825102470,0.051497,97146.0,97144.0,0.001]
[1734825102662,0.051497,97146.0,97145.0,0.001]
[1734825104070,0.051495,97150.0,97144.0,0.001]
[1734825104273,0.051497,97145.0,97144.0,0.001]
[1734825104770,0.0515,97140.0,97139.0,0.18414187]
[1734825104962,0.0515,97140.0,97135.0,0.24578215]
[1734825104963,0.051502,97136.0,97135.0,0.24578215]
[1734825106677,0.051502,97136.0,97128.0,0.18416924]
[1734825107064,0.051502,97136.0,97135.0,0.001]
[1734825107872,0.051502,97136.0,97128.0,0.18616924]
[1734825108066,0.051502,97136.0,97129.0,0.18416924]
[1734825108273,0.052502,97136.0,97129.0,0.18416924]
[1734825108473,0.001,97136.0,97129.0,0.18416924]
[1734825108684,0.051503,97135.0,97129.0,0.18416924]
[1734825108870,0.051503,97134.0,97129.0,0.18416924]
[1734825109062,0.001,97136.0,97129.0,0.18416924]
[1734825109578,0.01012883,97140.0,97129.0,0.18616924]
[1734825110075,0.01012883,97139.0,97137.0,0.051501]
[1734825110272,0.051498,97144.0,97139.0,0.0515]
[1734825110478,0.051498,97143.0,97139.0,0.0515]
[1734825110674,0.051498,97143.0,97140.0,0.0515]
[1734825111673,0.051498,97143.0,97141.0,0.051499]
[1734825111875,0.051495,97150.0,97138.0,0.0635]
[1734825112076,0.12321747,97152.0,97145.0,0.051497]
[1734825112272,0.033,97160.0,97146.0,0.0313]
[1734825112273,0.051496,97147.0,97146.0,0.0313]
[1734825113475,0.051493,97154.0,97146.0,0.0313]
[1734825113664,0.051493,97154.0,97152.0,0.412294]
[1734825114369,0.12321747,97157.0,97156.0,0.051491]
[1734825115585,0.12321747,97167.0,97156.0,0.18417397]
[1734825115777,0.12321747,97167.0,97164.0,0.051487]
[1734825115969,0.12321747,97167.0,97165.0,0.03]
[1734825116577,0.12321747,97167.0,97166.0,0.051486]
[1734825116881,0.12421747,97167.0,97166.0,0.051486]
[1734825117081,0.001,97167.0,97166.0,0.051486]
[1734825117287,0.002,97167.0,97166.0,0.051486]
[1734825118383,0.002,97167.0,97165.0,0.031]
[1734825118581,0.053486,97167.0,97165.0,0.001]
[1734825118879,0.053486,97167.0,97162.0,0.18417397]
[1734825118880,0.051488,97164.0,97162.0,0.18417397]
[1734825119574,0.051488,97164.0,97161.0,0.54497397]
[1734825119773,0.051488,97163.0,97161.0,0.54497397]
[1734825119976,0.051488,97163.0,97161.0,0.18417397]
[1734825120588,0.051488,97163.0,97159.0,0.18417397]
[1734825122087,0.002,97164.0,97155.0,0.18417397]
[1734825122088,0.051491,97156.0,97155.0,0.18417397]